[Event "41st Amateur D7"]
[Site "ChessGUI4"]
[Date "2013.07.12"]
[Round "36.2"]
[White "MadChess 1.2"]
[Black "Waxman 2011"]
[Result "1/2-1/2"]
[BlackElo "2256"]
[ECO "A29"]
[EventDate "2013.??.??"]
[TimeControl "40/1500:40/1500:40/1500"]
[WhiteElo "2200"]

{ i5 Quad } 1.c4 { [%eval 0,1] [%emt 0:00:00] } 1...e5
{ [%eval 0,1] [%emt 0:00:00] } 2.Nc3 { [%eval 0,1] [%emt 0:00:00] } 2...Nf6
{ [%eval 0,1] [%emt 0:00:00] } 3.Nf3 { [%eval 0,1] [%emt 0:00:00] } 3...Nc6
{ [%eval 0,1] [%emt 0:00:00] } 4.g3 { [%eval 0,1] [%emt 0:00:00] } 4...d5
{ [%eval 0,1] [%emt 0:00:00] } 5.cxd5 { [%eval 0,1] [%emt 0: 00:00] }
5...Nxd5 { [%eval 0,1] [%emt 0:00:00] } 6.Bg2 { [%eval 0,1] [%emt 0:00:00] }
6...Nb6 { [%eval 0,1] [%emt 0:00:00] } 7.O-O { [%eval 0,1] [%emt 0:00:00] }
7...Be7 { [%eval 0,1] [%emt 0:00:00] } 8.Rb1 { [%eval 0,1] [%emt 0:00:00] }
8...Be6 { [%eval 0, 1] [%emt 0:00:00] } 9.d3 { [%eval -9,10] [%emt 0:00:26] }
9...O-O { [%eval 25,12] [%emt 0:00:45] (O-O) } 10.Be3
{ [%eval -7,10] [%emt 0:00:44] (Be3) } 10...Nd5
{ [%eval 23,12] [%emt 0:01:05] (Nd5) } 11.d4
{ [%eval 0,11] [%emt 0:00:37] (Bd2) } 11...f6
{ [%eval 30,12] [%emt 0:01:09] (exd4) } 12.Nxd5
{ [%eval -3,10] [%emt 0:00:18] (Qd2) } 12...Bxd5
{ [%eval 33,12] [%emt 0:00:35] (Bxd5) } 13.dxe5
{ [%eval 4,10] [%emt 0:00:17] (Rc1) } 13...Bxa2
{ [%eval 8,12] [%emt 0:01:08] (Bxa2) } 14.Ra1
{ [%eval 18, 11] [%emt 0:00:29] (exf6) } 14...Bd5
{ [%eval -15,12] [%emt 0:00:47] (Bd5) } 15.exf6
{ [%eval 44,11] [%emt 0:00:39] (Qa4) } 15...Bxf6
{ [%eval 20,11] [%emt 0:00:53] (Bxf6) } 16.Qb1
{ [%eval 14,10] [%emt 0:00:40] (Qd3) } 16...Bb3
{ [%eval -22,12] [%emt 0:00:42] (Bc4) } 17.Bc5
{ [%eval 53,11] [%emt 0:00:53] (Nd2) } 17...Rf7
{ [%eval 0,12] [%emt 0: 01:00] (Rf7) } 18.Ra3
{ [%eval 52,11] [%emt 0:00:48] (Rc1) } 18...Be6
{ [%eval 2,12] [%emt 0:01:02] (Bc4) } 19.e4
{ [%eval 51,11] [%emt 0:00:39] (Qc2) } 19...Rd7
{ [%eval 42,12] [%emt 0:00:41] (Rd7) } 20.Qc1
{ [%eval 44,10] [%emt 0:00:22] (Qc2) } 20...Be7
{ [%eval 37,12] [%emt 0:00:39] (a5) } 21.Re1
{ [%eval 49,10] [%emt 0:00:30] (e5) } 21...Qf8
{ [%eval 35,12] [%emt 0:00:39] (h6) } 22.Bxe7
{ [%eval 58,12] [%emt 0:00:43] (Bxe7) } 22...Qxe7
{ [%eval 31,13] [%emt 0:01:02] (Qxe7) } 23.Bf1
{ [%eval 72,11] [%emt 0:00:48] (Ng5) } 23...Nd4
{ [%eval 32,12] [%emt 0:00:38] (Nd4) } 24.Bc4
{ [%eval 73,11] [%emt 0:00:24] (Ne5) } 24...Nxf3+
{ [%eval 50,14] [%emt 0:00:35] (Nxf3) } 25.Rxf3
{ [%eval 66,12] [%emt 0:00:48] (Rxf3) } 25...Rad8
{ [%eval 30,12] [%emt 0:00: 23] (b6) } 26.Rf5
{ [%eval 75,12] [%emt 0:00:20] (Rf5) } 26...Bxc4
{ [%eval 35,12] [%emt 0:00:25] (Bxc4) } 27.Qxc4+
{ [%eval 76,13] [%emt 0:00:26] (Qxc4) } 27...Kh8
{ [%eval 43,11] [%emt 0:00:13] (Kh8) } 28.Qc5
{ [%eval 91,13] [%emt 0:00:49] (h3) } 28...Qxc5
{ [%eval 35,12] [%emt 0:00:14] (Kg8) } 29.Rxc5
{ [%eval 102,12] [%emt 0:00: 25] (Rxc5) } 29...c6
{ [%eval -9,15] [%emt 0:00:35] (b6) } 30.e5
{ [%eval 98,14] [%emt 0:01:19] (e5) } 30...Rd1
{ [%eval -17,16] [%emt 0:00:44] (Rd2) } 31.Rc1
{ [%eval 93,15] [%emt 0:01:19] (Kf1) } 31...Rxc1
{ [%eval -7,16] [%emt 0:00:39] (Rxc1) } 32.Rxc1
{ [%eval 91,14] [%emt 0:00:27] (Rxc1) } 32...Kg8
{ [%eval -32,16] [%emt 0:00:48] (Kg8) } 33.Rc2
{ [%eval 98,13] [%emt 0:00:32] (Re1) } 33...Kf7
{ [%eval -30,16] [%emt 0:00:31] (Kf7) } 34.f4
{ [%eval 91,13] [%emt 0:00:53] (f4) } 34...Ke6
{ [%eval -35,16] [%emt 0: 01:28] (Ke6) } 35.Kf2
{ [%eval 94,13] [%emt 0:00:48] (Kf2) } 35...g6
{ [%eval -32,16] [%emt 0:01:30] (Rd3) } 36.Kf3
{ [%eval 93,12] [%emt 0:00:49] (Ke3) } 36...Rd3+
{ [%eval -30,16] [%emt 0:00:34] (a5) } 37.Kg4
{ [%eval 97,13] [%emt 0:01:16] (Ke4) } 37...h6
{ [%eval -35,16] [%emt 0:00:28] (a6) } 38.Rg2
{ [%eval 112,15] [%emt 0:01: 24] (Rg2) } 38...c5
{ [%eval -29,16] [%emt 0:00:24] (a5) } 39.h4
{ [%eval 104,15] [%emt 0:01:43] (h4) } 39...Rd4
{ [%eval -32,16] [%emt 0:00:20] (Rd4) } 40.Kf3
{ [%eval 81,14] [%emt 0:01:04] (h5) } 40...h5
{ [%eval -14,16] [%emt 0:00:23] (Rd3) } 41.g4
{ [%eval 84,15] [%emt 0:01:59] (g4) } 41...Rd3+
{ [%eval -22,18] [%emt 0:00:37] (Rb4) } 42.Ke4
{ [%eval 68,16] [%emt 0:01:05] (Ke4) } 42...Rd4+
{ [%eval -24,18] [%emt 0:00:27] (Rd4) } 43.Ke3
{ [%eval 78,16] [%emt 0:00:46] (Ke3) } 43...hxg4
{ [%eval -24, 17] [%emt 0:00:11] (Rb4) } 44.Rxg4
{ [%eval 120,16] [%emt 0:02:01] (Rxg4) } 44...Kf7
{ [%eval -27,17] [%emt 0:00:50] (Kf7) } 45.e6+
{ [%eval 122,15] [%emt 0:01:04] (Rg2) } 45...Kf6
{ [%eval -2,18] [%emt 0:00:34] (Kf6) } 46.e7
{ [%eval 66,16] [%emt 0: 01:23] (e7) } 46...Kxe7
{ [%eval -1,17] [%emt 0:00:08] (Kxe7) } 47.Rxg6
{ [%eval 60,15] [%emt 0:00:52] (Rxg6) } 47...Rb4
{ [%eval -1,17] [%emt 0:00:31] (b6) } 48.Rg2
{ [%eval 79,15] [%emt 0:00:43] (Rg2) } 48...Kf6
{ [%eval -24,18] [%emt 0:00:41] (Rb3) } 49.Kf3
{ [%eval 93,15] [%emt 0:00:45] (Kf3) } 49...Kf5
{ [%eval -21,19] [%emt 0:00:44] (Kf5) } 50.Rg5+
{ [%eval 75,16] [%emt 0:01:13] (Rg5) } 50...Kf6
{ [%eval -23,18] [%emt 0:00:21] (Kf6) } 51.Rxc5
{ [%eval 81,15] [%emt 0:00:46] (h5) } 51...Rxb2
{ [%eval -21, 17] [%emt 0:00:27] (Rxb2) } 52.h5
{ [%eval 60,14] [%emt 0:00:36] (Kg3) } 52...Rh2
{ [%eval -21,18] [%emt 0:00:42] (b6) } 53.Kg3
{ [%eval 63,14] [%emt 0:00:40] (Kg3) } 53...Rh1
{ [%eval -17,18] [%emt 0:00:29] (Rh1) } 54.Kg4
{ [%eval 59,14] [%emt 0:00: 18] (Rc7) } 54...Rg1+
{ [%eval -17,19] [%emt 0:00:27] (Rg1) } 55.Kf3
{ [%eval 59,14] [%emt 0:00:29] (Kf3) } 55...Rf1+
{ [%eval -17,19] [%emt 0:00:42] (b6) } 56.Ke3
{ [%eval 59,14] [%emt 0:00:21] (Ke3) } 56...Rh1
{ [%eval -17,19] [%emt 0:01:10] (b6) } 57.Ke4
{ [%eval 55,13] [%emt 0:00:23] (Rg5) } 57...Re1+
{ [%eval -12,18] [%emt 0:00: 29] (b6) } 58.Kd3
{ [%eval 39,15] [%emt 0:00:42] (Kd3) } 58...Rf1
{ [%eval -12,18] [%emt 0:00:42] (Rf1) } 59.Rc8
{ [%eval 28,14] [%emt 0:00:23] (Rc8) } 59...Rh1
{ [%eval -7,18] [%emt 0:00:47] (Rh1) } 60.Rc7
{ [%eval 24,14] [%emt 0:00:33] (Rf8) } 60...b6
{ [%eval -5,18] [%emt 0:00:34] (b6) } 61.Rxa7
{ [%eval 19,14] [%emt 0:00:27] (Rxa7) } 61...Rxh5
{ [%eval -14,14] [%emt 0:00:27] (Rxh5) } 62.Ke4
{ [%eval 28,13] [%emt 0:00:18] (Ke4) } 62...Rb5
{ [%eval -1,16] [%emt 0:00:44] (Rb5) } 63.Ra8
{ [%eval 16,14] [%emt 0:00:23] (Ra8) } 63...Rb4+
{ [%eval 0,16] [%emt 0:00:35] (Rb4) } 64.Kf3
{ [%eval 3,14] [%emt 0:00:20] (Kf3) } 64...Rb1
{ [%eval 0,16] [%emt 0:00:34] (b5) } 65.Rf8+
{ [%eval 0,14] [%emt 0:00:19] (Ke3) } 65...Ke6
{ [%eval 0,16] [%emt 0: 01:00] (Kg7) } 66.Ke4
{ [%eval 3,14] [%emt 0:00:27] (Rb8) } 66...Rb4+
{ [%eval 0,16] [%emt 0:00:33] (Re1) } 67.Ke3
{ [%eval 0,15] [%emt 0:00:27] (Ke3) } 67...b5
{ [%eval 0, 17] [%emt 0:00:52] (Rb1) } 68.Rb8
{ [%eval 0,14] [%emt 0:00:31] (Re8) } 68...Rb3+
{ [%eval 0,17] [%emt 0:00:35] (Rb3) } 69.Ke4
{ [%eval 0,15] [%emt 0:00:16] (Ke4) } 69...Rb4+
{ [%eval 0,18] [%emt 0:00:42] (Rb4) } 70.Kf3 { [%eval 0,16] [%emt 0:00:18] }
70...Rb1 { [%eval 0,16] [%emt 0:00:35] (Rb1) } 71.Ke4
{ [%eval 0,15] [%emt 0:00:08] (Kg4) } 71...Rb4+
{ [%eval 0,18] [%emt 0:00:40] (Rb4) } 72.Kf3
{ [%eval 0,100] [%emt 0: 00:01] } 72...Rb1
{ [%eval 0,18] [%emt 0:00:39] (Rb1) } 73.Ke4
{ [%eval 0,100] [%emt 0: 00:01] } 73...Rb4+
{ [%eval 0,18] [%emt 0:00:47] (Rb4) } 1/2-1/2

[Event "41st Amateur D7"]
[Site "ChessGUI4"]
[Date "2013.07.12"]
[Round "36.3"]
[White "Shallow 1.0 64-bit"]
[Black "Gibbon 2.57a 64-bit"]
[Result "0-1"]
[BlackElo "2251"]
[ECO "B04"]
[EventDate "2013.??.??"]
[TimeControl "40/1500:40/1500:40/1500"]
[WhiteElo "2200"]

{ i5 Quad } 1.e4 { [%eval 0,1] [%emt 0:00:00] } 1...Nf6
{ [%eval 0,1] [%emt 0:00:00] } 2.e5 { [%eval 0,1] [%emt 0:00:00] } 2...Nd5
{ [%eval 0,1] [%emt 0:00:00] } 3.d4 { [%eval 0,1] [%emt 0:00:00] } 3...d6
{ [%eval 0,1] [%emt 0:00:00] } 4.Nf3 { [%eval 0,1] [%emt 0:00:00] } 4...dxe5
{ [%eval 0,1] [%emt 0:00:00] } 5.Nxe5 { [%eval 0,1] [%emt 0: 00:00] } 5...c6
{ [%eval 0,1] [%emt 0:00:00] } 6.Bd3 { [%eval 0,1] [%emt 0:00:00] } 6...Nd7
{ [%eval 0,1] [%emt 0:00:00] } 7.O-O { [%eval 0,1] [%emt 0:00:00] } 7...Nxe5
{ [%eval 0,1] [%emt 0:00:00] } 8.dxe5 { [%eval 0,1] [%emt 0:00:00] } 8...Be6
{ [%eval 0,1] [%emt 0:00:00] } 9.a3 { [%eval 5,13] [%emt 0:00:42] } 9...g6
{ [%eval -9,15] [%emt 0: 01:32] (g6) } 10.Qe2
{ [%eval 3,13] [%emt 0:00:42] (Qe2) } 10...Bg7
{ [%eval -7,14] [%emt 0:01:02] (Bg7) } 11.Bd2
{ [%eval 4,13] [%emt 0:00:42] (Bd2) } 11...O-O
{ [%eval -5,13] [%emt 0:00:28] (Nb6) } 12.Nc3
{ [%eval 10,14] [%emt 0:00:42] (Nc3) } 12...Nb6
{ [%eval 2,13] [%emt 0:00:34] (Qb6) } 13.Be3
{ [%eval 24,13] [%emt 0:00:42] (Be3) } 13...Qc7
{ [%eval -6,13] [%emt 0:01:16] (Qc7) } 14.f4
{ [%eval 27,14] [%emt 0:00:42] (f4) } 14...Rfe8
{ [%eval -9,11] [%emt 0:00:21] (a6) } 15.Rad1
{ [%eval 27,13] [%emt 0: 00:42] (a4) } 15...Rad8
{ [%eval -9,12] [%emt 0:00:31] (Rad8) } 16.Qf2
{ [%eval 29,13] [%emt 0:00:42] (Kh1) } 16...Bg4
{ [%eval -9,13] [%emt 0:00:54] (Bg4) } 17.Rd2
{ [%eval 29,13] [%emt 0:00:42] (Rd2) } 17...Rd7
{ [%eval -10,12] [%emt 0:00:29] (Be6) } 18.Qh4
{ [%eval 33,12] [%emt 0:00:42] (Kh1) } 18...h5
{ [%eval -12,12] [%emt 0:00:30] (Be6) } 19.h3
{ [%eval 47,12] [%emt 0:00:42] (Kh1) } 19...Be6
{ [%eval 5,12] [%emt 0: 00:14] (Be6) } 20.Rfd1
{ [%eval 42,13] [%emt 0:00:42] (Rfd1) } 20...Nd5
{ [%eval 2,12] [%emt 0:01:01] (Nc4) } 21.Nxd5
{ [%eval 46,14] [%emt 0:00:42] (Nxd5) } 21...Rxd5
{ [%eval -3,12] [%emt 0:00:16] (Rxd5) } 22.Qf2
{ [%eval 45,13] [%emt 0:00:42] (Qf2) } 22...Ra5
{ [%eval -2,11] [%emt 0:00:12] (a6) } 23.Bd4
{ [%eval 56,12] [%emt 0: 00:42] (Be2) } 23...Rd8
{ [%eval 1,11] [%emt 0:00:18] (b6) } 24.Bc3
{ [%eval 116,14] [%emt 0:00:42] (f5) } 24...Ra4
{ [%eval -70,13] [%emt 0:00:23] (Ra4) } 25.Bb4
{ [%eval 112,13] [%emt 0:00:42] (Bb4) } 25...b5
{ [%eval -70,12] [%emt 0:00:19] (b5) } 26.b3
{ [%eval 101,14] [%emt 0:00:42] (b3) } 26...Ra6
{ [%eval -92,12] [%emt 0:00:16] (Ra6) } 27.Qc5
{ [%eval 109,13] [%emt 0:00:42] (a4) } 27...Rd5
{ [%eval -117,13] [%emt 0:00:57] (Rd5) } 28.Qxe7
{ [%eval 105,14] [%emt 0:00:42] (Qxe7) } 28...Qxe7
{ [%eval -120,13] [%emt 0:00:14] (Qxe7) } 29.Bxe7
{ [%eval 107,15] [%emt 0:00:42] (Bxe7) } 29...Rd4
{ [%eval -91,14] [%emt 0:00:19] (Bh6) } 30.Rf2
{ [%eval 106,14] [%emt 0:00: 42] (a4) } 30...Bf8
{ [%eval -74,14] [%emt 0:00:15] (Bf5) } 31.Bxf8
{ [%eval 99,16] [%emt 0:00:42] (Bxf8) } 31...Kxf8
{ [%eval -59,14] [%emt 0:00:08] (Kxf8) } 32.Ra1
{ [%eval 103,15] [%emt 0:00:42] (Ra1) } 32...Ke7
{ [%eval -58,14] [%emt 0:00:15] (Bxb3) } 33.Rf3
{ [%eval 109,14] [%emt 0:00:42] (Kh2) } 33...Bf5
{ [%eval -72,15] [%emt 0:00: 40] (Rb4) } 34.Bxf5
{ [%eval 110,15] [%emt 0:00:42] (Bxf5) } 34...gxf5
{ [%eval -72,15] [%emt 0:00:10] (gxf5) } 35.c3
{ [%eval 107,14] [%emt 0:00:42] (c3) } 35...Rd8
{ [%eval -73,15] [%emt 0:00:09] (Rd2) } 36.b4
{ [%eval 107,14] [%emt 0:00:42] (b4) } 36...c5
{ [%eval -80,15] [%emt 0:00:13] (f6) } 37.Re3
{ [%eval 114,13] [%emt 0:00: 42] (bxc5) } 37...c4
{ [%eval -27,15] [%emt 0:00:13] (f6) } 38.Kf2
{ [%eval 106,14] [%emt 0:00:42] (Ra2) } 38...Rd2+
{ [%eval 0,15] [%emt 0:00:10] (Rd2) } 39.Re2
{ [%eval 80,16] [%emt 0:00:42] (Kg3) } 39...Rd3
{ [%eval -49,17] [%emt 0:00:22] (Rd3) } 40.Re3
{ [%eval 80,16] [%emt 0:00:42] (a4) } 40...Rd2+
{ [%eval 0,17] [%emt 0:00:14] (Rd2) } 41.Re2
{ [%eval 75,16] [%emt 0:00:37] (Re2) } 41...Rd3
{ [%eval -46,18] [%emt 0:00:43] (Rd3) } 42.a4
{ [%eval 74,15] [%emt 0:00:37] (a4) } 42...Rxc3
{ [%eval -59,18] [%emt 0:00:47] (bxa4) } 43.Rea2
{ [%eval 91,15] [%emt 0:00:37] (Rea2) } 43...Rxa4
{ [%eval -73,17] [%emt 0:00:37] (bxa4) } 44.Rxa4
{ [%eval 102,15] [%emt 0:00:37] (Rxa4) } 44...bxa4
{ [%eval -74,18] [%emt 0:00:12] (bxa4) } 45.Rxa4
{ [%eval 71,15] [%emt 0:00:37] (Rxa4) } 45...Rb3
{ [%eval -80,18] [%emt 0:00:41] (Rb3) } 46.Rxa7+
{ [%eval 92,15] [%emt 0:00:37] (Rxa7) } 46...Ke6
{ [%eval -78,19] [%emt 0:01:17] (Ke6) } 47.Rc7
{ [%eval 89,15] [%emt 0:00:37] (Rb7) } 47...Rxb4
{ [%eval -12,19] [%emt 0:00: 58] (Rxb4) } 48.Kg3
{ [%eval 87,16] [%emt 0:00:37] (Kg3) } 48...Kd5
{ [%eval 0,18] [%emt 0:01:24] (f6) } 49.Rxf7
{ [%eval 101,14] [%emt 0:00:37] (Kh4) } 49...c3
{ [%eval 0,18] [%emt 0:01:14] (c3) } 50.Rc7
{ [%eval 101,16] [%emt 0:00:37] (Rc7) } 50...Kd4
{ [%eval 0,18] [%emt 0:00:27] (h4) } 51.e6
{ [%eval 94,14] [%emt 0:00:37] (Kh4) } 51...Kd3
{ [%eval 0,18] [%emt 0:00:53] (Kd3) } 52.Rd7+
{ [%eval 67,14] [%emt 0: 00:37] (e7) } 52...Ke3
{ [%eval 0,17] [%emt 0:01:30] (Ke3) } 53.Rc7
{ [%eval 51,15] [%emt 0:00:37] (Kh4) } 53...Kd2
{ [%eval 0,18] [%emt 0:00:33] (Kd3) } 54.Rc5
{ [%eval 63,14] [%emt 0:00:37] (Rd7) } 54...Rb8
{ [%eval 0,16] [%emt 0:00:43] (Rb8) } 55.Rd5+
{ [%eval 3,13] [%emt 0:00:37] (Rd5) } 55...Ke3
{ [%eval 0,17] [%emt 0:00:20] (Ke2) } 56.Rc5
{ [%eval 1,15] [%emt 0:00:37] (e7) } 56...Kd3
{ [%eval 0,17] [%emt 0:00:19] (Kd2) } 57.Kh4
{ [%eval 0,14] [%emt 0:00:37] (e7) } 57...c2
{ [%eval 41,16] [%emt 0:00:20] (c2) } 58.Kxh5
{ [%eval 0,15] [%emt 0:00:37] (Kg5) } 58...Re8
{ [%eval 224,18] [%emt 0: 00:29] (Re8) } 59.Rd5+
{ [%eval 0,14] [%emt 0:00:37] (Kg6) } 59...Kc4
{ [%eval 271,19] [%emt 0:00:19] (Kc3) } 60.Rd7
{ [%eval -131,15] [%emt 0:00:37] (Rd7) } 60...Rxe6
{ [%eval 306,18] [%emt 0:00:29] (Rxe6) } 61.Rc7+
{ [%eval -146,14] [%emt 0:00:37] (Rc7) } 61...Kd3
{ [%eval 272,19] [%emt 0:00:38] (Kb3) } 62.Rd7+
{ [%eval -155,15] [%emt 0:00:37] (g4) } 62...Ke3
{ [%eval 254,20] [%emt 0:00:24] (Kc3) } 63.Rc7
{ [%eval -155,15] [%emt 0:00:37] (Rc7) } 63...Kd2
{ [%eval 216,19] [%emt 0:00:18] (Kd2) } 64.Rd7+
{ [%eval -239,15] [%emt 0:00:37] (g4) } 64...Kc1
{ [%eval 267,20] [%emt 0:00: 42] (Kc1) } 65.Rc7
{ [%eval -274,16] [%emt 0:00:37] (Rc7) } 65...Re3
{ [%eval 272,19] [%emt 0:00:18] (Re3) } 66.Kg5
{ [%eval -278,16] [%emt 0:00:37] (Kg6) } 66...Kd2
{ [%eval 236,19] [%emt 0:00:17] (Rg3) } 67.Rxc2+
{ [%eval -279,15] [%emt 0:00:37] (Rxc2) } 67...Kxc2
{ [%eval 246,19] [%emt 0:00:07] (Kxc2) } 68.h4
{ [%eval -222,15] [%emt 0:00:37] (Kxf5) } 68...Kd3
{ [%eval 174,19] [%emt 0:00:16] (Rg3) } 69.h5
{ [%eval -144,16] [%emt 0:00:37] (Kxf5) } 69...Ke4
{ [%eval 982,25] [%emt 0:00:20] (Ke4) } 70.h6
{ [%eval -164,16] [%emt 0:00:37] (Kh4) } 70...Rg3+
{ [%eval -31798,25] [%emt 0:00:21] (Rg3) } 71.Kf6
{ [%eval -804,17] [%emt 0:00:37] (Kf6) } 71...Rxg2
{ [%eval -31794,27] [%emt 0:00:30] (Rxg2) } 72.h7
{ [%eval -989,15] [%emt 0:00:37] (Ke7) } 72...Rh2
{ [%eval -31792,28] [%emt 0:00:25] (Rh2) } 73.Kg7
{ [%eval -991,14] [%emt 0: 00:37] (Kg7) } 73...Kxf4
{ [%eval -31790,29] [%emt 0:00:22] (Kxf4) } 0-1